[Event "Titled Tuesday Blitz July 18 Early 2023"]
[White "Prydun, Andriy"]
[Black "Floresvillar Gonzalez, Luis Migu"]
[WhiteFideId "14145898"]
[BlackFideId "5100542"]
[WhiteElo "2371"]
[BlackElo "2074"]
[Result "1/2-1/2"]
[Round "5"]
[TimeControl "180+2"]
[Date "2023.07.18"]
[WhiteClock "0:00:15"]
[BlackClock "0:00:36"]
[Board "182"]

1. d4 {[%clk 0:01:01]}  d5 {[%clk 0:02:56]} 2. Nf3 {[%clk 0:00:59]}  Bf5 {[%clk 0:02:53]} 3. c3 {[%clk 0:00:58]}  e6 {[%clk 0:02:52]} 4. Ne5 {[%clk 0:00:58]}  Nd7 {[%clk 0:02:51]} 5. Nd3 {[%clk 0:00:58]}  Ngf6 {[%clk 0:02:48]} 6. Bf4 {[%clk 0:00:57]}  c5 {[%clk 0:02:44]} 7. Nd2 {[%clk 0:00:54]}  c4 {[%clk 0:02:43]} 8. Ne5 {[%clk 0:00:54]}  Nxe5 {[%clk 0:02:42]} 9. Bxe5 {[%clk 0:00:54]}  Bd6 {[%clk 0:02:42]} 10. Bxd6 {[%clk 0:00:53]}  Qxd6 {[%clk 0:02:41]} 11. g3 {[%clk 0:00:53]}  O-O {[%clk 0:02:40]} 12. Bg2 {[%clk 0:00:54]}  b5 {[%clk 0:02:38]} 13. a3 {[%clk 0:00:53]}  a5 {[%clk 0:02:37]} 14. O-O {[%clk 0:00:54]}  h6 {[%clk 0:02:34]} 15. Re1 {[%clk 0:00:51]}  b4 {[%clk 0:02:34]} 16. axb4 {[%clk 0:00:51]}  axb4 {[%clk 0:02:34]} 17. Rxa8 {[%clk 0:00:52]}  Rxa8 {[%clk 0:02:33]} 18. Nxc4 {[%clk 0:00:53]}  Qc7 {[%clk 0:02:24]} 19. Ne3 {[%clk 0:00:53]}  bxc3 {[%clk 0:02:24]} 20. Nxf5 {[%clk 0:00:46]}  exf5 {[%clk 0:02:21]} 21. Qc2 {[%clk 0:00:46]}  Rc8 {[%clk 0:02:17]} 22. bxc3 {[%clk 0:00:42]}  g6 {[%clk 0:02:05]} 23. Rc1 {[%clk 0:00:41]}  Ne4 {[%clk 0:02:05]} 24. e3 {[%clk 0:00:41]}  Nxc3 {[%clk 0:01:56]} 25. Kh1 {[%clk 0:00:41]}  Nb5 {[%clk 0:01:47]} 26. Qxc7 {[%clk 0:00:39]}  Rxc7 {[%clk 0:01:47]} 27. Rxc7 {[%clk 0:00:17]}  Nxc7 {[%clk 0:01:46]} 28. h4 {[%clk 0:00:18]}  f6 {[%clk 0:01:43]} 29. Kg1 {[%clk 0:00:18]}  Kf7 {[%clk 0:01:43]} 30. Kf1 {[%clk 0:00:19]}  g5 {[%clk 0:01:35]} 31. Ke2 {[%clk 0:00:20]}  Ke6 {[%clk 0:01:27]} 32. f4 {[%clk 0:00:20]}  Kd6 {[%clk 0:01:21]} 33. Bh3 {[%clk 0:00:17]}  Ke6 {[%clk 0:01:09]} 34. fxg5 {[%clk 0:00:15]}  fxg5 {[%clk 0:01:08]} 35. hxg5 {[%clk 0:00:15]}  hxg5 {[%clk 0:01:08]} 36. g4 {[%clk 0:00:16]}  fxg4 {[%clk 0:01:06]} 37. Bxg4+ {[%clk 0:00:17]}  Kf6 {[%clk 0:01:02]} 38. Kf3 {[%clk 0:00:18]}  Ne6 {[%clk 0:01:00]} 39. Kg3 {[%clk 0:00:12]}  Nc7 {[%clk 0:01:00]} 40. Bf3 {[%clk 0:00:12]}  Kf5 {[%clk 0:00:59]} 41. Bg2 {[%clk 0:00:13]}  Kf6 {[%clk 0:00:53]} 42. Kg4 {[%clk 0:00:13]}  Kg6 {[%clk 0:00:49]} 43. Bf3 {[%clk 0:00:13]}  Kf6 {[%clk 0:00:49]} 44. Bg2 {[%clk 0:00:12]}  Kg6 {[%clk 0:00:49]} 45. Bh1 {[%clk 0:00:13]}  Kf6 {[%clk 0:00:49]} 46. Bf3 {[%clk 0:00:13]}  Kg6 {[%clk 0:00:49]} 47. Be2 {[%clk 0:00:13]}  Kf6 {[%clk 0:00:48]} 48. Bd3 {[%clk 0:00:14]}  Ne6 {[%clk 0:00:47]} 49. Bc2 {[%clk 0:00:14]}  Nc7 {[%clk 0:00:45]} 50. Bb3 {[%clk 0:00:14]}  Kg6 {[%clk 0:00:45]} 51. Ba4 {[%clk 0:00:15]}  Kf6 {[%clk 0:00:44]} 52. Bd7 {[%clk 0:00:15]}  Na6 {[%clk 0:00:42]} 53. Bc6 {[%clk 0:00:15]}  Nb4 {[%clk 0:00:42]} 54. Bb7 {[%clk 0:00:15]}  Kg6 {[%clk 0:00:42]} 55. Bc8 {[%clk 0:00:15]}  Kf6 {[%clk 0:00:41]} 56. Bf5 {[%clk 0:00:15]}  Na2 {[%clk 0:00:40]} 57. Bd3 {[%clk 0:00:14]}  Nc3 {[%clk 0:00:39]} 58. Bc2 {[%clk 0:00:14]}  Ne2 {[%clk 0:00:37]} 59. Bd3 {[%clk 0:00:15]}  Nc3 {[%clk 0:00:37]} 60. Bc2 {[%clk 0:00:15]}  Ne2 {[%clk 0:00:37]} 61. Bd3 {[%clk 0:00:15]}  Nc3 {[%clk 0:00:36]} 1/2-1/2


[Site "https://www.chess.com"]

[Event "Titled Tuesday Blitz July 18 Early 2023"]
[White "Penagalapati, Abhinav"]
[Black "Davidson, Kevin"]
[WhiteFideId "30938210"]
[BlackFideId "2056810"]
[WhiteElo "2069"]
[BlackElo "2370"]
[Result "0-1"]
[Round "5"]
[TimeControl "180+2"]
[Date "2023.07.18"]
[WhiteClock "0:00:07"]
[BlackClock "0:00:04"]
[Board "183"]

1. Nf3 {[%clk 0:02:58]}  Nf6 {[%clk 0:02:57]} 2. g3 {[%clk 0:02:58]}  g6 {[%clk 0:02:57]} 3. Bg2 {[%clk 0:02:59]}  Bg7 {[%clk 0:02:57]} 4. O-O {[%clk 0:03:00]}  O-O {[%clk 0:02:57]} 5. b3 {[%clk 0:02:59]}  d6 {[%clk 0:02:57]} 6. Bb2 {[%clk 0:02:57]}  e5 {[%clk 0:02:56]} 7. c4 {[%clk 0:02:55]}  Nc6 {[%clk 0:02:56]} 8. Nc3 {[%clk 0:02:55]}  Bf5 {[%clk 0:02:55]} 9. d3 {[%clk 0:02:55]}  Qd7 {[%clk 0:02:55]} 10. Re1 {[%clk 0:02:46]}  Bh3 {[%clk 0:02:54]} 11. Bh1 {[%clk 0:02:46]}  Ng4 {[%clk 0:02:54]} 12. Ng5 {[%clk 0:02:36]}  Nf6 {[%clk 0:02:47]} 13. Nxh3 {[%clk 0:02:28]}  Qxh3 {[%clk 0:02:47]} 14. Bg2 {[%clk 0:02:29]}  Qd7 {[%clk 0:02:44]} 15. e3 {[%clk 0:02:27]}  Nd8 {[%clk 0:02:38]} 16. a4 {[%clk 0:02:21]}  a5 {[%clk 0:02:31]} 17. Qe2 {[%clk 0:02:13]}  c6 {[%clk 0:02:30]} 18. Rad1 {[%clk 0:02:13]}  Ne6 {[%clk 0:02:28]} 19. Ba3 {[%clk 0:02:09]}  Qc7 {[%clk 0:02:27]} 20. d4 {[%clk 0:02:03]}  exd4 {[%clk 0:02:26]} 21. exd4 {[%clk 0:02:04]}  Rfe8 {[%clk 0:02:23]} 22. Qd3 {[%clk 0:02:02]}  Rad8 {[%clk 0:02:00]} 23. h3 {[%clk 0:01:54]}  Qb6 {[%clk 0:01:59]} 24. Ne2 {[%clk 0:01:39]}  d5 {[%clk 0:01:39]} 25. c5 {[%clk 0:01:29]}  Qc7 {[%clk 0:01:30]} 26. Rc1 {[%clk 0:01:24]}  Ne4 {[%clk 0:01:20]} 27. Rc2 {[%clk 0:01:18]}  f5 {[%clk 0:01:10]} 28. Bc1 {[%clk 0:01:16]}  Qf7 {[%clk 0:01:09]} 29. f3 {[%clk 0:01:07]}  Nf6 {[%clk 0:01:07]} 30. Bd2 {[%clk 0:01:05]}  Qc7 {[%clk 0:01:03]} 31. Kf2 {[%clk 0:00:55]}  Re7 {[%clk 0:00:59]} 32. Rcc1 {[%clk 0:00:51]}  Rde8 {[%clk 0:00:59]} 33. Nf4 {[%clk 0:00:40]}  Nxd4 {[%clk 0:00:47]} 34. Rxe7 {[%clk 0:00:38]}  Rxe7 {[%clk 0:00:43]} 35. Be3 {[%clk 0:00:35]}  Ne6 {[%clk 0:00:39]} 36. Nxe6 {[%clk 0:00:23]}  Rxe6 {[%clk 0:00:39]} 37. Bf4 {[%clk 0:00:24]}  Qe7 {[%clk 0:00:37]} 38. Bf1 {[%clk 0:00:22]}  Nh5 {[%clk 0:00:32]} 39. Bd6 {[%clk 0:00:21]}  Qe8 {[%clk 0:00:32]} 40. Qd2 {[%clk 0:00:17]}  Be5 {[%clk 0:00:28]} 41. Bxe5 {[%clk 0:00:11]}  Rxe5 {[%clk 0:00:29]} 42. g4 {[%clk 0:00:09]}  fxg4 {[%clk 0:00:24]} 43. hxg4 {[%clk 0:00:10]}  Nf6 {[%clk 0:00:22]} 44. Bd3 {[%clk 0:00:10]}  h5 {[%clk 0:00:09]} 45. Qf4 {[%clk 0:00:11]}  Kg7 {[%clk 0:00:07]} 46. Rh1 {[%clk 0:00:11]}  Qe7 {[%clk 0:00:04]} 47. g5 {[%clk 0:00:11]}  Nh7 {[%clk 0:00:04]} 48. Rg1 {[%clk 0:00:10]}  Rxg5 {[%clk 0:00:02]} 49. Rxg5 {[%clk 0:00:10]}  Qxg5 {[%clk 0:00:01]} 50. Qd4+ {[%clk 0:00:10]}  Qf6 {[%clk 0:00:01]} 51. Qxf6+ {[%clk 0:00:10]}  Kxf6 {[%clk 0:00:02]} 52. Ke3 {[%clk 0:00:11]}  Nf8 {[%clk 0:00:01]} 53. Kd4 {[%clk 0:00:11]}  Ne6+ {[%clk 0:00:02]} 54. Kc3 {[%clk 0:00:11]}  Nxc5 {[%clk 0:00:02]} 55. Bc2 {[%clk 0:00:12]}  Ke5 {[%clk 0:00:02]} 56. Kd2 {[%clk 0:00:11]}  g5 {[%clk 0:00:02]} 57. Ke3 {[%clk 0:00:11]}  h4 {[%clk 0:00:02]} 58. Kf2 {[%clk 0:00:11]}  Kf4 {[%clk 0:00:02]} 59. Bg6 {[%clk 0:00:11]}  Ne6 {[%clk 0:00:01]} 60. Be8 {[%clk 0:00:10]}  Nd4 {[%clk 0:00:02]} 61. Bd7 {[%clk 0:00:10]}  Nxb3 {[%clk 0:00:02]} 62. Bc8 {[%clk 0:00:10]}  Nc5 {[%clk 0:00:02]} 63. Bg4 {[%clk 0:00:10]}  Nxa4 {[%clk 0:00:01]} 64. Bc8 {[%clk 0:00:10]}  Nc5 {[%clk 0:00:02]} 65. Bg4 {[%clk 0:00:09]}  a4 {[%clk 0:00:03]} 66. Bh5 {[%clk 0:00:08]}  a3 {[%clk 0:00:04]} 67. Bg6 {[%clk 0:00:07]}  a2 {[%clk 0:00:04]} 0-1


[Site "https://www.chess.com"]

[Event "Titled Tuesday Blitz July 18 Early 2023"]
[White "Mejia, Cherry Ann"]
[Black "ogpin"]
[WhiteFideId "5206880"]
[WhiteElo "2369"]
[BlackElo "2062"]
[Result "0-1"]
[Round "5"]
[TimeControl "180+2"]
[Date "2023.07.18"]
[WhiteClock "0:00:14"]
[BlackClock "0:00:11"]
[Board "184"]

1. e4 {[%clk 0:03:00]}  e5 {[%clk 0:02:46]} 2. Nf3 {[%clk 0:03:00]}  Nc6 {[%clk 0:02:45]} 3. Bb5 {[%clk 0:03:00]}  f5 {[%clk 0:02:42]} 4. d4 {[%clk 0:02:52]}  fxe4 {[%clk 0:02:35]} 5. Nxe5 {[%clk 0:02:52]}  Nxe5 {[%clk 0:02:35]} 6. dxe5 {[%clk 0:02:51]}  c6 {[%clk 0:02:32]} 7. Bc4 {[%clk 0:02:25]}  Qa5+ {[%clk 0:02:27]} 8. Bd2 {[%clk 0:02:18]}  Qxe5 {[%clk 0:02:27]} 9. Bc3 {[%clk 0:02:18]}  Qg5 {[%clk 0:02:17]} 10. Bxg8 {[%clk 0:01:44]}  Rxg8 {[%clk 0:02:17]} 11. Nd2 {[%clk 0:01:41]}  d5 {[%clk 0:02:15]} 12. Qe2 {[%clk 0:01:37]}  Be7 {[%clk 0:01:57]} 13. f3 {[%clk 0:01:29]}  exf3 {[%clk 0:01:52]} 14. Nxf3 {[%clk 0:01:28]}  Qh5 {[%clk 0:01:47]} 15. O-O-O {[%clk 0:01:23]}  Qh6+ {[%clk 0:01:09]} 16. Kb1 {[%clk 0:01:17]}  Qe6 {[%clk 0:01:10]} 17. Qxe6 {[%clk 0:00:57]}  Bxe6 {[%clk 0:01:11]} 18. Rhe1 {[%clk 0:00:58]}  Kd7 {[%clk 0:01:09]} 19. Ne5+ {[%clk 0:00:57]}  Kc7 {[%clk 0:01:08]} 20. Nxc6 {[%clk 0:00:54]}  bxc6 {[%clk 0:01:08]} 21. Rxe6 {[%clk 0:00:54]}  Rae8 {[%clk 0:01:01]} 22. Rde1 {[%clk 0:00:53]}  Kd7 {[%clk 0:01:00]} 23. a3 {[%clk 0:00:44]}  g6 {[%clk 0:00:53]} 24. g4 {[%clk 0:00:26]}  Bd6 {[%clk 0:00:50]} 25. Rxe8 {[%clk 0:00:22]}  Rxe8 {[%clk 0:00:50]} 26. Rxe8 {[%clk 0:00:20]}  Kxe8 {[%clk 0:00:51]} 27. h3 {[%clk 0:00:21]}  Kf7 {[%clk 0:00:46]} 28. Kc1 {[%clk 0:00:21]}  c5 {[%clk 0:00:43]} 29. Kd1 {[%clk 0:00:20]}  d4 {[%clk 0:00:43]} 30. Be1 {[%clk 0:00:20]}  Ke6 {[%clk 0:00:43]} 31. Ke2 {[%clk 0:00:21]}  Kd5 {[%clk 0:00:42]} 32. Kf3 {[%clk 0:00:21]}  Be5 {[%clk 0:00:35]} 33. b3 {[%clk 0:00:18]}  Bd6 {[%clk 0:00:27]} 34. h4 {[%clk 0:00:18]}  c4 {[%clk 0:00:19]} 35. bxc4+ {[%clk 0:00:18]}  Kxc4 {[%clk 0:00:20]} 36. a4 {[%clk 0:00:17]}  d3 {[%clk 0:00:18]} 37. cxd3+ {[%clk 0:00:17]}  Kxd3 {[%clk 0:00:19]} 38. Bf2 {[%clk 0:00:17]}  a6 {[%clk 0:00:18]} 39. h5 {[%clk 0:00:17]}  gxh5 {[%clk 0:00:18]} 40. gxh5 {[%clk 0:00:18]}  Kc4 {[%clk 0:00:17]} 41. Be1 {[%clk 0:00:18]}  Kb3 {[%clk 0:00:16]} 42. a5 {[%clk 0:00:16]}  Bb4 {[%clk 0:00:17]} 43. Bg3 {[%clk 0:00:16]}  Bxa5 {[%clk 0:00:16]} 44. Ke4 {[%clk 0:00:17]}  Bc3 {[%clk 0:00:13]} 45. Bd6 {[%clk 0:00:17]}  a5 {[%clk 0:00:13]} 46. Kf5 {[%clk 0:00:17]}  a4 {[%clk 0:00:12]} 47. Ke6 {[%clk 0:00:17]}  Bb4 {[%clk 0:00:07]} 48. Be5 {[%clk 0:00:17]}  a3 {[%clk 0:00:08]} 49. h6 {[%clk 0:00:14]}  Bc3 {[%clk 0:00:07]} 50. Bxc3 {[%clk 0:00:14]}  Kxc3 {[%clk 0:00:08]} 51. Kf7 {[%clk 0:00:14]}  a2 {[%clk 0:00:09]} 52. Kg7 {[%clk 0:00:15]}  a1=Q {[%clk 0:00:09]} 53. Kxh7 {[%clk 0:00:16]}  Qa7+ {[%clk 0:00:06]} 54. Kh8 {[%clk 0:00:16]}  Qb8+ {[%clk 0:00:07]} 55. Kg7 {[%clk 0:00:16]}  Qc7+ {[%clk 0:00:07]} 56. Kg8 {[%clk 0:00:17]}  Qd8+ {[%clk 0:00:08]} 57. Kg7 {[%clk 0:00:17]}  Qe7+ {[%clk 0:00:08]} 58. Kg8 {[%clk 0:00:18]}  Qe6+ {[%clk 0:00:08]} 59. Kg7 {[%clk 0:00:18]}  Qg4+ {[%clk 0:00:09]} 60. Kh8 {[%clk 0:00:18]}  Qc8+ {[%clk 0:00:07]} 61. Kg7 {[%clk 0:00:17]}  Qd7+ {[%clk 0:00:07]} 62. Kg8 {[%clk 0:00:18]}  Qe8+ {[%clk 0:00:08]} 63. Kg7 {[%clk 0:00:18]}  Qe5+ {[%clk 0:00:09]} 64. Kg8 {[%clk 0:00:15]}  Qg5+ {[%clk 0:00:08]} 65. Kh7 {[%clk 0:00:15]}  Kd4 {[%clk 0:00:08]} 66. Kh8 {[%clk 0:00:15]}  Qxh6+ {[%clk 0:00:09]} 67. Kg8 {[%clk 0:00:16]}  Qf6 {[%clk 0:00:09]} 68. Kh7 {[%clk 0:00:16]}  Qg5 {[%clk 0:00:09]} 69. Kh8 {[%clk 0:00:15]}  Ke5 {[%clk 0:00:10]} 70. Kh7 {[%clk 0:00:14]}  Kf6 {[%clk 0:00:11]} 0-1


[Site "https://www.chess.com"]

[Event "Titled Tuesday Blitz July 18 Early 2023"]
[White "Llanos, Guillermo"]
[Black "Skiadopoulos, Nikolaos"]
[WhiteFideId "100358"]
[BlackFideId "4200772"]
[WhiteElo "2342"]
[BlackElo "1904"]
[Result "1-0"]
[Round "5"]
[TimeControl "180+2"]
[Date "2023.07.18"]
[WhiteClock "0:00:23"]
[BlackClock "0:00:00"]
[Board "188"]

1. Nf3 {[%clk 0:03:00]}  c5 {[%clk 0:02:58]} 2. g3 {[%clk 0:03:00]}  Nc6 {[%clk 0:02:56]} 3. Bg2 {[%clk 0:03:00]}  g6 {[%clk 0:02:56]} 4. O-O {[%clk 0:02:59]}  Bg7 {[%clk 0:02:55]} 5. c4 {[%clk 0:02:59]}  e6 {[%clk 0:02:53]} 6. Nc3 {[%clk 0:02:59]}  Nge7 {[%clk 0:02:53]} 7. e3 {[%clk 0:02:57]}  d5 {[%clk 0:02:49]} 8. cxd5 {[%clk 0:02:56]}  Nxd5 {[%clk 0:02:48]} 9. d4 {[%clk 0:02:56]}  cxd4 {[%clk 0:02:38]} 10. Nxd5 {[%clk 0:02:47]}  exd5 {[%clk 0:02:34]} 11. Nxd4 {[%clk 0:02:38]}  Nxd4 {[%clk 0:02:33]} 12. exd4 {[%clk 0:02:38]}  O-O {[%clk 0:02:33]} 13. Qb3 {[%clk 0:02:27]}  Bxd4 {[%clk 0:02:21]} 14. Bh6 {[%clk 0:02:19]}  Bg7 {[%clk 0:02:18]} 15. Bxg7 {[%clk 0:02:18]}  Kxg7 {[%clk 0:02:18]} 16. Bxd5 {[%clk 0:02:18]}  Qb6 {[%clk 0:02:11]} 17. Qxb6 {[%clk 0:01:54]}  axb6 {[%clk 0:02:11]} 18. Rfe1 {[%clk 0:01:54]}  Rd8 {[%clk 0:02:08]} 19. Bb3 {[%clk 0:01:44]}  Bf5 {[%clk 0:01:58]} 20. Re7 {[%clk 0:01:42]}  Rd7 {[%clk 0:01:58]} 21. Rxd7 {[%clk 0:01:41]}  Bxd7 {[%clk 0:01:57]} 22. Rd1 {[%clk 0:01:40]}  Bc6 {[%clk 0:01:55]} 23. f4 {[%clk 0:01:32]}  Re8 {[%clk 0:01:54]} 24. Rd2 {[%clk 0:01:32]}  Re1+ {[%clk 0:01:50]} 25. Kf2 {[%clk 0:01:32]}  Rh1 {[%clk 0:01:49]} 26. Ke3 {[%clk 0:01:31]}  Re1+ {[%clk 0:01:42]} 27. Kd4 {[%clk 0:01:31]}  Kf6 {[%clk 0:01:39]} 28. a3 {[%clk 0:01:16]}  h5 {[%clk 0:01:38]} 29. Bc2 {[%clk 0:01:10]}  Rf1 {[%clk 0:01:21]} 30. Bd3 {[%clk 0:01:08]}  Rf3 {[%clk 0:01:07]} 31. Be4 {[%clk 0:00:52]}  Rb3 {[%clk 0:00:50]} 32. Bxc6 {[%clk 0:00:49]}  bxc6 {[%clk 0:00:49]} 33. Kc4 {[%clk 0:00:50]}  Re3 {[%clk 0:00:46]} 34. Rd6+ {[%clk 0:00:46]}  Re6 {[%clk 0:00:45]} 35. Rd2 {[%clk 0:00:40]}  h4 {[%clk 0:00:41]} 36. a4 {[%clk 0:00:39]}  hxg3 {[%clk 0:00:41]} 37. hxg3 {[%clk 0:00:39]}  Re3 {[%clk 0:00:37]} 38. Rd6+ {[%clk 0:00:27]}  Re6 {[%clk 0:00:19]} 39. Rxe6+ {[%clk 0:00:27]}  Kxe6 {[%clk 0:00:19]} 40. b4 {[%clk 0:00:27]}  Kd6 {[%clk 0:00:19]} 41. a5 {[%clk 0:00:27]}  bxa5 {[%clk 0:00:13]} 42. bxa5 {[%clk 0:00:27]}  f6 {[%clk 0:00:02]} 43. a6 {[%clk 0:00:27]}  Kc7 {[%clk 0:00:02]} 44. Kc5 {[%clk 0:00:27]}  g5 {[%clk 0:00:02]} 45. f5 {[%clk 0:00:23]}  g4 {[%clk 0:00:01]} 46. a7 {[%clk 0:00:23]}  Kb7 {[%clk 0:00:01]} 47. a8=Q+ {[%clk 0:00:22]}  Kxa8 {[%clk 0:00:00]} 48. Kxc6 {[%clk 0:00:23]} 1-0


[Site "https://www.chess.com"]

[Event "Titled Tuesday Blitz July 18 Early 2023"]
[White "Schut, Han"]
[Black "Larina, Maria"]
[WhiteFideId "1005561"]
[BlackFideId "24113182"]
[WhiteElo "2305"]
[BlackElo "2195"]
[Result "1/2-1/2"]
[Round "5"]
[TimeControl "180+2"]
[Date "2023.07.18"]
[WhiteClock "0:00:04"]
[BlackClock "0:00:21"]
[Board "191"]

1. e4 {[%clk 0:02:57]}  c6 {[%clk 0:02:59]} 2. d4 {[%clk 0:02:54]}  d5 {[%clk 0:02:59]} 3. e5 {[%clk 0:02:46]}  Bf5 {[%clk 0:02:59]} 4. Nf3 {[%clk 0:02:46]}  e6 {[%clk 0:02:58]} 5. Be2 {[%clk 0:02:47]}  h6 {[%clk 0:02:58]} 6. O-O {[%clk 0:02:43]}  Nd7 {[%clk 0:02:59]} 7. c3 {[%clk 0:02:42]}  Ne7 {[%clk 0:02:58]} 8. Nbd2 {[%clk 0:02:41]}  Bh7 {[%clk 0:02:55]} 9. Re1 {[%clk 0:02:42]}  Nf5 {[%clk 0:02:53]} 10. Nf1 {[%clk 0:02:42]}  Be7 {[%clk 0:02:48]} 11. Ng3 {[%clk 0:02:42]}  Nxg3 {[%clk 0:02:47]} 12. hxg3 {[%clk 0:02:41]}  O-O {[%clk 0:02:47]} 13. Be3 {[%clk 0:02:37]}  c5 {[%clk 0:02:46]} 14. a3 {[%clk 0:02:37]}  cxd4 {[%clk 0:02:35]} 15. cxd4 {[%clk 0:02:36]}  Nb6 {[%clk 0:02:34]} 16. Rc1 {[%clk 0:02:29]}  Qd7 {[%clk 0:02:34]} 17. Qd2 {[%clk 0:02:28]}  Rfc8 {[%clk 0:02:30]} 18. g4 {[%clk 0:02:28]}  Rxc1 {[%clk 0:02:29]} 19. Rxc1 {[%clk 0:02:28]}  Rc8 {[%clk 0:02:28]} 20. g5 {[%clk 0:02:25]}  Rxc1+ {[%clk 0:02:28]} 21. Qxc1 {[%clk 0:02:23]}  hxg5 {[%clk 0:02:28]} 22. Bxg5 {[%clk 0:02:15]}  Be4 {[%clk 0:02:12]} 23. Bxe7 {[%clk 0:01:56]}  Qxe7 {[%clk 0:02:13]} 24. Ng5 {[%clk 0:01:50]}  Bg6 {[%clk 0:02:10]} 25. f4 {[%clk 0:01:12]}  Qd8 {[%clk 0:02:09]} 26. g4 {[%clk 0:01:01]}  Qc8 {[%clk 0:02:01]} 27. Qxc8+ {[%clk 0:00:55]}  Nxc8 {[%clk 0:02:02]} 28. Kf2 {[%clk 0:00:53]}  Kf8 {[%clk 0:01:52]} 29. Ke3 {[%clk 0:00:51]}  Ke7 {[%clk 0:01:48]} 30. Nf3 {[%clk 0:00:47]}  Be4 {[%clk 0:01:47]} 31. Nh4 {[%clk 0:00:39]}  Nb6 {[%clk 0:01:46]} 32. Kd2 {[%clk 0:00:32]}  Na4 {[%clk 0:01:44]} 33. Kc1 {[%clk 0:00:31]}  f6 {[%clk 0:01:36]} 34. Bd1 {[%clk 0:00:29]}  Nb6 {[%clk 0:01:34]} 35. Bc2 {[%clk 0:00:23]}  Bxc2 {[%clk 0:01:31]} 36. Kxc2 {[%clk 0:00:24]}  Nc4 {[%clk 0:01:31]} 37. a4 {[%clk 0:00:18]}  Ne3+ {[%clk 0:01:29]} 38. Kb3 {[%clk 0:00:17]}  Nxg4 {[%clk 0:01:30]} 39. Kb4 {[%clk 0:00:17]}  g5 {[%clk 0:01:18]} 40. exf6+ {[%clk 0:00:15]}  Kxf6 {[%clk 0:01:19]} 41. fxg5+ {[%clk 0:00:16]}  Kxg5 {[%clk 0:01:19]} 42. Nf3+ {[%clk 0:00:16]}  Kf4 {[%clk 0:01:19]} 43. Nd2 {[%clk 0:00:15]}  Ke3 {[%clk 0:01:19]} 44. Nb3 {[%clk 0:00:15]}  Nf2 {[%clk 0:01:14]} 45. Kc5 {[%clk 0:00:15]}  Nd3+ {[%clk 0:01:06]} 46. Kd6 {[%clk 0:00:14]}  Nxb2 {[%clk 0:01:05]} 47. Kxe6 {[%clk 0:00:15]}  Nxa4 {[%clk 0:01:05]} 48. Kxd5 {[%clk 0:00:15]}  Nb6+ {[%clk 0:00:55]} 49. Kc5 {[%clk 0:00:12]}  Kd3 {[%clk 0:00:54]} 50. d5 {[%clk 0:00:12]}  Nxd5 {[%clk 0:00:53]} 51. Kxd5 {[%clk 0:00:12]}  Kc3 {[%clk 0:00:54]} 52. Nc5 {[%clk 0:00:12]}  b5 {[%clk 0:00:53]} 53. Na6 {[%clk 0:00:11]}  b4 {[%clk 0:00:52]} 54. Kc5 {[%clk 0:00:03]}  b3 {[%clk 0:00:51]} 55. Nb4 {[%clk 0:00:04]}  a5 {[%clk 0:00:49]} 56. Nd5+ {[%clk 0:00:04]}  Kc2 {[%clk 0:00:49]} 57. Ne3+ {[%clk 0:00:02]}  Kd3 {[%clk 0:00:48]} 58. Nc4 {[%clk 0:00:03]}  Kc3 {[%clk 0:00:45]} 59. Kb5 {[%clk 0:00:03]}  a4 {[%clk 0:00:43]} 60. Na3 {[%clk 0:00:03]}  Kb2 {[%clk 0:00:24]} 61. Kxa4 {[%clk 0:00:04]}  Ka2 {[%clk 0:00:23]} 62. Nc4 {[%clk 0:00:04]}  b2 {[%clk 0:00:21]} 63. Nxb2 {[%clk 0:00:04]} 1/2-1/2


[Site "https://www.chess.com"]

[Event "Titled Tuesday Blitz July 18 Early 2023"]
[White "Gyulamiryan-koryun"]
[Black "Holtel, Jasper"]
[BlackFideId "12956376"]
[WhiteElo "1867"]
[BlackElo "2294"]
[Result "0-1"]
[Round "5"]
[TimeControl "180+2"]
[Date "2023.07.18"]
[WhiteClock "0:00:47"]
[BlackClock "0:01:51"]
[Board "192"]

1. d4 {[%clk 0:02:59]}  Nf6 {[%clk 0:02:59]} 2. c4 {[%clk 0:02:59]}  g6 {[%clk 0:03:00]} 3. Nc3 {[%clk 0:02:59]}  Bg7 {[%clk 0:03:00]} 4. e4 {[%clk 0:02:58]}  d6 {[%clk 0:03:01]} 5. Nf3 {[%clk 0:02:58]}  O-O {[%clk 0:03:01]} 6. h3 {[%clk 0:02:59]}  c5 {[%clk 0:03:00]} 7. d5 {[%clk 0:02:56]}  Nbd7 {[%clk 0:02:58]} 8. Be3 {[%clk 0:02:55]}  a6 {[%clk 0:02:57]} 9. a4 {[%clk 0:02:54]}  b6 {[%clk 0:02:39]} 10. Be2 {[%clk 0:02:53]}  Rb8 {[%clk 0:02:38]} 11. Qc2 {[%clk 0:02:50]}  Ne8 {[%clk 0:02:29]} 12. O-O {[%clk 0:02:49]}  Nc7 {[%clk 0:02:28]} 13. Nd2 {[%clk 0:02:19]}  e5 {[%clk 0:02:19]} 14. dxe6 {[%clk 0:02:16]}  Nxe6 {[%clk 0:02:19]} 15. Nf3 {[%clk 0:02:13]}  Ne5 {[%clk 0:02:09]} 16. Rfd1 {[%clk 0:02:12]}  Nxf3+ {[%clk 0:02:07]} 17. Bxf3 {[%clk 0:02:10]}  Nd4 {[%clk 0:02:05]} 18. Bxd4 {[%clk 0:02:09]}  Bxd4 {[%clk 0:02:05]} 19. Nd5 {[%clk 0:02:02]}  Be6 {[%clk 0:02:00]} 20. Qd2 {[%clk 0:01:56]}  b5 {[%clk 0:01:53]} 21. axb5 {[%clk 0:01:35]}  axb5 {[%clk 0:01:54]} 22. cxb5 {[%clk 0:01:35]}  Bxd5 {[%clk 0:01:53]} 23. exd5 {[%clk 0:01:34]}  Rxb5 {[%clk 0:01:54]} 24. Ra2 {[%clk 0:01:29]}  Qf6 {[%clk 0:01:53]} 25. Rb1 {[%clk 0:01:07]}  Rfb8 {[%clk 0:01:52]} 26. g3 {[%clk 0:00:47]}  Qxf3 {[%clk 0:01:51]} 0-1


[Site "https://www.chess.com"]

[Event "Titled Tuesday Blitz July 18 Early 2023"]
[White "Cardenas Carbajal, Nilson"]
[Black "De Silva, L M S T"]
[WhiteFideId "8401128"]
[BlackFideId "9953698"]
[WhiteElo "2171"]
[BlackElo "2737"]
[Result "0-1"]
[Round "5"]
[TimeControl "180+2"]
[Date "2023.07.18"]
[WhiteClock "0:00:00"]
[BlackClock "0:00:23"]
[Board "193"]

1. e4 {[%clk 0:03:00]}  c6 {[%clk 0:02:59]} 2. d4 {[%clk 0:03:00]}  d5 {[%clk 0:03:00]} 3. Nd2 {[%clk 0:03:00]}  dxe4 {[%clk 0:02:59]} 4. Nxe4 {[%clk 0:03:01]}  Bf5 {[%clk 0:02:59]} 5. Ng3 {[%clk 0:03:01]}  Bg6 {[%clk 0:02:58]} 6. Nf3 {[%clk 0:03:01]}  Nd7 {[%clk 0:02:56]} 7. Bd3 {[%clk 0:03:00]}  Bxd3 {[%clk 0:02:56]} 8. Qxd3 {[%clk 0:03:00]}  e6 {[%clk 0:02:56]} 9. O-O {[%clk 0:03:00]}  Ngf6 {[%clk 0:02:56]} 10. Re1 {[%clk 0:03:00]}  Be7 {[%clk 0:02:55]} 11. b3 {[%clk 0:02:58]}  O-O {[%clk 0:02:54]} 12. Bb2 {[%clk 0:02:58]}  c5 {[%clk 0:02:46]} 13. c4 {[%clk 0:02:57]}  cxd4 {[%clk 0:02:45]} 14. Nxd4 {[%clk 0:02:58]}  Nc5 {[%clk 0:02:43]} 15. Qf3 {[%clk 0:02:47]}  Qb6 {[%clk 0:02:35]} 16. Ndf5 {[%clk 0:02:37]}  Qc7 {[%clk 0:02:14]} 17. Nxe7+ {[%clk 0:02:34]}  Qxe7 {[%clk 0:02:15]} 18. Nf5 {[%clk 0:02:14]}  Qd8 {[%clk 0:02:10]} 19. Rad1 {[%clk 0:02:04]}  exf5 {[%clk 0:02:06]} 20. Rxd8 {[%clk 0:02:00]}  Rfxd8 {[%clk 0:02:03]} 21. Qxf5 {[%clk 0:01:53]}  Ne6 {[%clk 0:01:47]} 22. h4 {[%clk 0:01:45]}  Nd7 {[%clk 0:01:40]} 23. h5 {[%clk 0:01:43]}  h6 {[%clk 0:01:40]} 24. Re3 {[%clk 0:01:31]}  Ndf8 {[%clk 0:01:01]} 25. Rg3 {[%clk 0:01:19]}  Kh8 {[%clk 0:01:01]} 26. Qxf7 {[%clk 0:01:14]}  Rd7 {[%clk 0:00:57]} 27. Qf3 {[%clk 0:00:45]}  Re8 {[%clk 0:00:54]} 28. Qe3 {[%clk 0:00:42]}  Kh7 {[%clk 0:00:39]} 29. Qxa7 {[%clk 0:00:24]}  Nf4 {[%clk 0:00:36]} 30. Kh2 {[%clk 0:00:14]}  Nxh5 {[%clk 0:00:34]} 31. Rg4 {[%clk 0:00:12]}  Rf7 {[%clk 0:00:32]} 32. f3 {[%clk 0:00:11]}  Ng6 {[%clk 0:00:29]} 33. Qb6 {[%clk 0:00:09]}  Nhf4 {[%clk 0:00:29]} 34. Qd6 {[%clk 0:00:06]}  Re2 {[%clk 0:00:27]} 35. Qd4 {[%clk 0:00:04]}  h5 {[%clk 0:00:23]} 36. Rg3 {[%clk 0:00:03]}  h4 {[%clk 0:00:22]} 37. Rg4 {[%clk 0:00:00]}  h3 {[%clk 0:00:23]} 0-1


[Site "https://www.chess.com"]